[Event "Titled Tuesday Blitz November 14 Early 2023"]
[White "a-z30"]
[Black "Ardila, Oscar Humberto"]
[BlackFideId "4404742"]
[WhiteElo "2491"]
[BlackElo "2316"]
[Result "0-1"]
[Round "4"]
[TimeControl "180+1"]
[Date "2023.11.14"]
[WhiteClock "0:00:02"]
[BlackClock "0:00:05"]
[Board "176"]

1. d3 {[%clk 0:03:00]}  Nf6 {[%clk 0:01:57]} 2. Nf3 {[%clk 0:02:59]}  d6 {[%clk 0:01:56]} 3. c4 {[%clk 0:02:59]}  Nbd7 {[%clk 0:01:56]} 4. Nc3 {[%clk 0:03:00]}  e5 {[%clk 0:01:57]} 5. g3 {[%clk 0:03:00]}  g6 {[%clk 0:01:57]} 6. Bg2 {[%clk 0:03:00]}  Bg7 {[%clk 0:01:58]} 7. O-O {[%clk 0:03:01]}  O-O {[%clk 0:01:58]} 8. Rb1 {[%clk 0:03:00]}  Re8 {[%clk 0:01:52]} 9. b3 {[%clk 0:03:01]}  Nf8 {[%clk 0:01:52]} 10. Bb2 {[%clk 0:03:00]}  Bf5 {[%clk 0:01:50]} 11. h3 {[%clk 0:02:52]}  c6 {[%clk 0:01:50]} 12. Rc1 {[%clk 0:02:48]}  Qd7 {[%clk 0:01:48]} 13. Kh2 {[%clk 0:02:48]}  h6 {[%clk 0:01:48]} 14. Re1 {[%clk 0:02:47]}  Rad8 {[%clk 0:01:47]} 15. e4 {[%clk 0:02:46]}  Be6 {[%clk 0:01:47]} 16. d4 {[%clk 0:02:47]}  Qc7 {[%clk 0:01:45]} 17. d5 {[%clk 0:02:45]}  cxd5 {[%clk 0:01:37]} 18. cxd5 {[%clk 0:02:41]}  Bc8 {[%clk 0:01:36]} 19. Nd2 {[%clk 0:02:37]}  Qb6 {[%clk 0:01:28]} 20. Qe2 {[%clk 0:02:34]}  a6 {[%clk 0:01:08]} 21. Nc4 {[%clk 0:02:33]}  Qa7 {[%clk 0:01:08]} 22. a4 {[%clk 0:02:32]}  b6 {[%clk 0:00:54]} 23. Ba3 {[%clk 0:02:31]}  Qb8 {[%clk 0:00:49]} 24. a5 {[%clk 0:02:27]}  b5 {[%clk 0:00:47]} 25. Nb6 {[%clk 0:02:25]}  N8d7 {[%clk 0:00:41]} 26. Na2 {[%clk 0:01:52]}  Nxb6 {[%clk 0:00:34]} 27. axb6 {[%clk 0:01:53]}  Qxb6 {[%clk 0:00:34]} 28. Rc6 {[%clk 0:01:53]}  Qb8 {[%clk 0:00:33]} 29. Rec1 {[%clk 0:01:49]}  Bf8 {[%clk 0:00:26]} 30. Qd2 {[%clk 0:01:36]}  Bb7 {[%clk 0:00:25]} 31. Rb6 {[%clk 0:01:32]}  Nd7 {[%clk 0:00:24]} 32. Rbc6 {[%clk 0:01:20]}  Bxc6 {[%clk 0:00:20]} 33. dxc6 {[%clk 0:01:21]}  Nc5 {[%clk 0:00:20]} 34. Qc2 {[%clk 0:01:14]}  Qc7 {[%clk 0:00:20]} 35. Nb4 {[%clk 0:01:11]}  a5 {[%clk 0:00:19]} 36. Nd5 {[%clk 0:01:06]}  Qxc6 {[%clk 0:00:20]} 37. Nf6+ {[%clk 0:00:44]}  Kg7 {[%clk 0:00:20]} 38. Nxe8+ {[%clk 0:00:45]}  Qxe8 {[%clk 0:00:20]} 39. Bxc5 {[%clk 0:00:40]}  dxc5 {[%clk 0:00:20]} 40. Bf1 {[%clk 0:00:41]}  b4 {[%clk 0:00:19]} 41. Bc4 {[%clk 0:00:40]}  Rd4 {[%clk 0:00:18]} 42. Bd5 {[%clk 0:00:40]}  Qb5 {[%clk 0:00:18]} 43. Rd1 {[%clk 0:00:34]}  Be7 {[%clk 0:00:15]} 44. Rxd4 {[%clk 0:00:32]}  exd4 {[%clk 0:00:15]} 45. Bc4 {[%clk 0:00:29]}  Qc6 {[%clk 0:00:14]} 46. f4 {[%clk 0:00:28]}  Qb6 {[%clk 0:00:09]} 47. Qd3 {[%clk 0:00:28]}  Qa7 {[%clk 0:00:07]} 48. Bb5 {[%clk 0:00:26]}  Qb7 {[%clk 0:00:06]} 49. e5 {[%clk 0:00:25]}  Qd5 {[%clk 0:00:04]} 50. h4 {[%clk 0:00:23]}  h5 {[%clk 0:00:01]} 51. Bc4 {[%clk 0:00:23]}  Qd8 {[%clk 0:00:02]} 52. Qe4 {[%clk 0:00:22]}  f6 {[%clk 0:00:02]} 53. exf6+ {[%clk 0:00:18]}  Bxf6 {[%clk 0:00:03]} 54. Qe6 {[%clk 0:00:19]}  Qe7 {[%clk 0:00:03]} 55. Qg8+ {[%clk 0:00:18]}  Kh6 {[%clk 0:00:03]} 56. Bd5 {[%clk 0:00:14]}  Qg7 {[%clk 0:00:03]} 57. Qe6 {[%clk 0:00:14]}  d3 {[%clk 0:00:03]} 58. Be4 {[%clk 0:00:08]}  d2 {[%clk 0:00:02]} 59. Qd5 {[%clk 0:00:08]}  Bc3 {[%clk 0:00:03]} 60. Qd6 {[%clk 0:00:06]}  Qf6 {[%clk 0:00:02]} 61. Qd5 {[%clk 0:00:06]}  Qd4 {[%clk 0:00:02]} 62. Qe6 {[%clk 0:00:03]}  Qf2+ {[%clk 0:00:02]} 63. Kh3 {[%clk 0:00:04]}  Qf1+ {[%clk 0:00:02]} 64. Bg2 {[%clk 0:00:04]}  d1=Q {[%clk 0:00:02]} 65. Bxf1 {[%clk 0:00:02]}  Qxf1+ {[%clk 0:00:03]} 66. Kh2 {[%clk 0:00:02]}  Qf2+ {[%clk 0:00:03]} 67. Kh3 {[%clk 0:00:03]}  Qf1+ {[%clk 0:00:04]} 68. Kh2 {[%clk 0:00:03]}  Bd4 {[%clk 0:00:03]} 69. Qe4 {[%clk 0:00:02]}  Qg1+ {[%clk 0:00:03]} 70. Kh3 {[%clk 0:00:02]}  Qf1+ {[%clk 0:00:04]} 71. Kh2 {[%clk 0:00:03]}  Bg1+ {[%clk 0:00:04]} 72. Kh1 {[%clk 0:00:03]}  Bf2+ {[%clk 0:00:04]} 73. Kh2 {[%clk 0:00:03]}  Qg1+ {[%clk 0:00:05]} 74. Kh3 {[%clk 0:00:04]}  Qf1+ {[%clk 0:00:05]} 75. Qg2 {[%clk 0:00:03]}  Qe1 {[%clk 0:00:05]} 76. Qa8 {[%clk 0:00:02]}  Qf1+ {[%clk 0:00:05]} 77. Kh2 {[%clk 0:00:02]}  Qg1+ {[%clk 0:00:05]} 78. Kh3 {[%clk 0:00:02]}  Qxg3# {[%clk 0:00:05]} 0-1


[Site "https://www.chess.com"]

[Event "Titled Tuesday Blitz November 14 Early 2023"]
[White "Kovalevsky, Stanislav"]
[Black "Ruge, Edison"]
[WhiteFideId "13508598"]
[BlackFideId "4401000"]
[WhiteElo "2484"]
[BlackElo "2308"]
[Result "0-1"]
[Round "4"]
[TimeControl "180+1"]
[Date "2023.11.14"]
[WhiteClock "0:00:03"]
[BlackClock "0:00:26"]
[Board "178"]

1. e4 {[%clk 0:03:00]}  e5 {[%clk 0:02:58]} 2. Nf3 {[%clk 0:03:00]}  Nc6 {[%clk 0:02:59]} 3. Bb5 {[%clk 0:03:00]}  f5 {[%clk 0:02:59]} 4. exf5 {[%clk 0:02:58]}  e4 {[%clk 0:02:58]} 5. Bxc6 {[%clk 0:02:58]}  dxc6 {[%clk 0:02:55]} 6. Qe2 {[%clk 0:02:52]}  Qe7 {[%clk 0:02:55]} 7. Nd4 {[%clk 0:02:47]}  Qe5 {[%clk 0:02:53]} 8. c3 {[%clk 0:02:35]}  Nf6 {[%clk 0:02:50]} 9. d3 {[%clk 0:02:28]}  c5 {[%clk 0:02:33]} 10. Nf3 {[%clk 0:02:26]}  Qxf5 {[%clk 0:02:31]} 11. dxe4 {[%clk 0:02:26]}  Qxe4 {[%clk 0:02:30]} 12. Qxe4+ {[%clk 0:02:24]}  Nxe4 {[%clk 0:02:30]} 13. O-O {[%clk 0:02:23]}  Nf6 {[%clk 0:02:22]} 14. Re1+ {[%clk 0:02:19]}  Kf7 {[%clk 0:02:16]} 15. Bf4 {[%clk 0:02:13]}  Bd6 {[%clk 0:02:13]} 16. Bxd6 {[%clk 0:01:59]}  cxd6 {[%clk 0:02:12]} 17. Na3 {[%clk 0:01:59]}  Bg4 {[%clk 0:01:54]} 18. Ng5+ {[%clk 0:01:56]}  Kg6 {[%clk 0:01:53]} 19. Ne4 {[%clk 0:01:55]}  d5 {[%clk 0:01:29]} 20. Nxc5 {[%clk 0:01:48]}  Rhe8 {[%clk 0:01:24]} 21. f3 {[%clk 0:01:43]}  Bf5 {[%clk 0:01:22]} 22. Nb5 {[%clk 0:01:41]}  b6 {[%clk 0:01:18]} 23. Na6 {[%clk 0:01:29]}  Bd3 {[%clk 0:01:13]} 24. Nac7 {[%clk 0:01:13]}  Rxe1+ {[%clk 0:01:11]} 25. Rxe1 {[%clk 0:01:10]}  Rc8 {[%clk 0:01:11]} 26. Re7 {[%clk 0:01:02]}  Ng8 {[%clk 0:00:55]} 27. Re6+ {[%clk 0:00:46]}  Nf6 {[%clk 0:00:54]} 28. a4 {[%clk 0:00:20]}  a6 {[%clk 0:00:52]} 29. Nxd5 {[%clk 0:00:11]}  axb5 {[%clk 0:00:42]} 30. Ne7+ {[%clk 0:00:07]}  Kf7 {[%clk 0:00:42]} 31. Rxf6+ {[%clk 0:00:07]}  Kxe7 {[%clk 0:00:41]} 32. Rxb6 {[%clk 0:00:07]}  bxa4 {[%clk 0:00:38]} 33. Rb7+ {[%clk 0:00:07]}  Kf6 {[%clk 0:00:38]} 34. Kf2 {[%clk 0:00:07]}  Bf5 {[%clk 0:00:33]} 35. g4 {[%clk 0:00:06]}  Be6 {[%clk 0:00:32]} 36. Rb4 {[%clk 0:00:04]}  Ra8 {[%clk 0:00:31]} 37. h4 {[%clk 0:00:04]}  h6 {[%clk 0:00:30]} 38. Ke3 {[%clk 0:00:03]}  a3 {[%clk 0:00:29]} 39. bxa3 {[%clk 0:00:03]}  Rxa3 {[%clk 0:00:29]} 40. Kd4 {[%clk 0:00:03]}  Ra1 {[%clk 0:00:29]} 41. Rc4 {[%clk 0:00:02]}  Bxc4 {[%clk 0:00:26]} 42. Kxc4 {[%clk 0:00:03]} 0-1


[Site "https://www.chess.com"]

[Event "Titled Tuesday Blitz November 14 Early 2023"]
[White "alfianasybullina"]
[Black "Omariev, Maksim"]
[BlackFideId "4193423"]
[WhiteElo "2271"]
[BlackElo "2472"]
[Result "0-1"]
[Round "4"]
[TimeControl "180+1"]
[Date "2023.11.14"]
[WhiteClock "0:00:10"]
[BlackClock "0:00:18"]
[Board "181"]

1. d4 {[%clk 0:03:00]}  h5 {[%clk 0:02:44]} 2. Nf3 {[%clk 0:02:59]}  h4 {[%clk 0:02:45]} 3. h3 {[%clk 0:03:00]}  e6 {[%clk 0:02:45]} 4. e4 {[%clk 0:02:59]}  d5 {[%clk 0:02:45]} 5. e5 {[%clk 0:02:58]}  c5 {[%clk 0:02:44]} 6. c3 {[%clk 0:02:58]}  Nc6 {[%clk 0:02:45]} 7. Bd3 {[%clk 0:02:43]}  Qb6 {[%clk 0:02:42]} 8. a3 {[%clk 0:02:41]}  Bd7 {[%clk 0:02:41]} 9. b4 {[%clk 0:02:38]}  cxd4 {[%clk 0:02:41]} 10. O-O {[%clk 0:02:29]}  dxc3 {[%clk 0:02:24]} 11. Nxc3 {[%clk 0:02:30]}  Be7 {[%clk 0:02:23]} 12. b5 {[%clk 0:02:21]}  Nd4 {[%clk 0:02:11]} 13. Na4 {[%clk 0:01:22]}  Nxf3+ {[%clk 0:02:06]} 14. gxf3 {[%clk 0:01:21]}  Qc7 {[%clk 0:01:43]} 15. Be3 {[%clk 0:01:18]}  Nh6 {[%clk 0:01:38]} 16. f4 {[%clk 0:01:15]}  Nf5 {[%clk 0:01:28]} 17. Rc1 {[%clk 0:01:10]}  Qa5 {[%clk 0:01:26]} 18. Bd2 {[%clk 0:01:09]}  Qd8 {[%clk 0:01:25]} 19. Nc5 {[%clk 0:01:04]}  b6 {[%clk 0:01:08]} 20. Na6 {[%clk 0:00:50]}  O-O {[%clk 0:01:08]} 21. a4 {[%clk 0:00:45]}  Rc8 {[%clk 0:01:03]} 22. Bb4 {[%clk 0:00:37]}  Rxc1 {[%clk 0:00:59]} 23. Qxc1 {[%clk 0:00:36]}  Bc8 {[%clk 0:01:00]} 24. Bxf5 {[%clk 0:00:19]}  exf5 {[%clk 0:00:56]} 25. Rd1 {[%clk 0:00:19]}  Bxa6 {[%clk 0:00:54]} 26. Bxe7 {[%clk 0:00:18]}  Qxe7 {[%clk 0:00:55]} 27. bxa6 {[%clk 0:00:19]}  Rd8 {[%clk 0:00:54]} 28. Qc2 {[%clk 0:00:15]}  g6 {[%clk 0:00:48]} 29. Qd3 {[%clk 0:00:15]}  Qb4 {[%clk 0:00:45]} 30. Qd4 {[%clk 0:00:12]}  Qxd4 {[%clk 0:00:37]} 31. Rxd4 {[%clk 0:00:11]}  Kf8 {[%clk 0:00:38]} 32. Kg2 {[%clk 0:00:10]}  Ke7 {[%clk 0:00:39]} 33. Kf3 {[%clk 0:00:11]}  Ke6 {[%clk 0:00:39]} 34. Ke3 {[%clk 0:00:12]}  Rc8 {[%clk 0:00:40]} 35. Rd3 {[%clk 0:00:12]}  Rc4 {[%clk 0:00:40]} 36. Ra3 {[%clk 0:00:12]}  Re4+ {[%clk 0:00:40]} 37. Kf3 {[%clk 0:00:13]}  Re1 {[%clk 0:00:30]} 38. a5 {[%clk 0:00:13]}  Rh1 {[%clk 0:00:20]} 39. Kg2 {[%clk 0:00:12]}  Rb1 {[%clk 0:00:21]} 40. axb6 {[%clk 0:00:13]}  Rxb6 {[%clk 0:00:22]} 41. Kf3 {[%clk 0:00:13]}  d4 {[%clk 0:00:22]} 42. Ke2 {[%clk 0:00:13]}  Kd5 {[%clk 0:00:22]} 43. Kd3 {[%clk 0:00:13]}  Rb5 {[%clk 0:00:22]} 44. f3 {[%clk 0:00:12]}  Kc5 {[%clk 0:00:22]} 45. Ra4 {[%clk 0:00:11]}  Rb3+ {[%clk 0:00:22]} 46. Ke2 {[%clk 0:00:12]}  Re3+ {[%clk 0:00:22]} 47. Kf2 {[%clk 0:00:12]}  Rb3 {[%clk 0:00:21]} 48. Ke2 {[%clk 0:00:11]}  Rb4 {[%clk 0:00:19]} 49. Ra5+ {[%clk 0:00:12]}  Kc4 {[%clk 0:00:19]} 50. Kd2 {[%clk 0:00:10]}  Rb2+ {[%clk 0:00:19]} 51. Kc1 {[%clk 0:00:10]}  Rh2 {[%clk 0:00:20]} 52. e6 {[%clk 0:00:09]}  fxe6 {[%clk 0:00:19]} 53. Re5 {[%clk 0:00:10]}  Rxh3 {[%clk 0:00:19]} 54. Rxe6 {[%clk 0:00:10]}  Rxf3 {[%clk 0:00:18]} 0-1


[Site "https://www.chess.com"]

[Event "Titled Tuesday Blitz November 14 Early 2023"]
[White "Quirke, Jeffrey"]
[Black "Manukyan, Sargis V."]
[WhiteFideId "2013029"]
[BlackFideId "13303465"]
[WhiteElo "2265"]
[BlackElo "2471"]
[Result "0-1"]
[Round "4"]
[TimeControl "180+1"]
[Date "2023.11.14"]
[WhiteClock "0:00:06"]
[BlackClock "0:01:29"]
[Board "182"]

1. e4 {[%clk 0:03:00]}  e6 {[%clk 0:03:00]} 2. Nf3 {[%clk 0:02:59]}  d5 {[%clk 0:03:00]} 3. e5 {[%clk 0:02:55]}  c5 {[%clk 0:03:00]} 4. b4 {[%clk 0:02:55]}  cxb4 {[%clk 0:03:01]} 5. d4 {[%clk 0:02:52]}  Nc6 {[%clk 0:03:00]} 6. a3 {[%clk 0:02:50]}  bxa3 {[%clk 0:03:01]} 7. c3 {[%clk 0:02:50]}  Nh6 {[%clk 0:03:00]} 8. Bd3 {[%clk 0:02:50]}  Bd7 {[%clk 0:02:59]} 9. O-O {[%clk 0:02:41]}  f6 {[%clk 0:02:59]} 10. Nxa3 {[%clk 0:02:38]}  Nf7 {[%clk 0:02:55]} 11. exf6 {[%clk 0:02:37]}  gxf6 {[%clk 0:02:55]} 12. Re1 {[%clk 0:02:36]}  a6 {[%clk 0:02:54]} 13. c4 {[%clk 0:02:32]}  dxc4 {[%clk 0:02:42]} 14. Bxc4 {[%clk 0:02:21]}  Qe7 {[%clk 0:02:27]} 15. Nb5 {[%clk 0:01:14]}  O-O-O {[%clk 0:02:25]} 16. Bf4 {[%clk 0:01:13]}  e5 {[%clk 0:02:19]} 17. Qb3 {[%clk 0:00:44]}  Qb4 {[%clk 0:02:00]} 18. Bxf7 {[%clk 0:00:32]}  Qxb3 {[%clk 0:01:58]} 19. Bxb3 {[%clk 0:00:32]}  exf4 {[%clk 0:01:56]} 20. Nc3 {[%clk 0:00:26]}  Bb4 {[%clk 0:01:43]} 21. Rec1 {[%clk 0:00:24]}  Kb8 {[%clk 0:01:42]} 22. Ne4 {[%clk 0:00:21]}  Bg4 {[%clk 0:01:34]} 23. Nxf6 {[%clk 0:00:17]}  Bxf3 {[%clk 0:01:32]} 24. gxf3 {[%clk 0:00:18]}  Nxd4 {[%clk 0:01:31]} 25. Kf1 {[%clk 0:00:06]}  Nxb3 {[%clk 0:01:29]} 0-1


[Site "https://www.chess.com"]

[Event "Titled Tuesday Blitz November 14 Early 2023"]
[White "Valy02chess"]
[Black "Akylbekov, Nasyr"]
[BlackFideId "13800353"]
[WhiteElo "2213"]
[BlackElo "2463"]
[Result "1-0"]
[Round "4"]
[TimeControl "180+1"]
[Date "2023.11.14"]
[WhiteClock "0:00:04"]
[BlackClock "0:00:22"]
[Board "186"]

1. e4 {[%clk 0:02:55]}  e5 {[%clk 0:02:53]} 2. Nf3 {[%clk 0:02:55]}  f6 {[%clk 0:02:54]} 3. d4 {[%clk 0:02:54]}  d6 {[%clk 0:02:54]} 4. Bc4 {[%clk 0:02:43]}  Qe7 {[%clk 0:02:54]} 5. O-O {[%clk 0:02:42]}  Be6 {[%clk 0:02:54]} 6. Qe2 {[%clk 0:02:33]}  Nd7 {[%clk 0:02:53]} 7. Nc3 {[%clk 0:02:31]}  c6 {[%clk 0:02:52]} 8. Bxe6 {[%clk 0:02:11]}  Qxe6 {[%clk 0:02:51]} 9. d5 {[%clk 0:02:12]}  Qf7 {[%clk 0:02:50]} 10. dxc6 {[%clk 0:02:05]}  bxc6 {[%clk 0:02:50]} 11. Qa6 {[%clk 0:02:06]}  Nb6 {[%clk 0:02:50]} 12. Be3 {[%clk 0:02:04]}  Qc7 {[%clk 0:02:51]} 13. a4 {[%clk 0:01:59]}  Ne7 {[%clk 0:02:47]} 14. a5 {[%clk 0:01:58]}  Nd7 {[%clk 0:02:45]} 15. Rfd1 {[%clk 0:01:54]}  Nc8 {[%clk 0:02:45]} 16. Qc4 {[%clk 0:01:51]}  Be7 {[%clk 0:02:42]} 17. Nd5 {[%clk 0:01:43]}  Qb7 {[%clk 0:02:42]} 18. Nxe7 {[%clk 0:01:42]}  Kxe7 {[%clk 0:02:40]} 19. Nh4 {[%clk 0:01:36]}  g6 {[%clk 0:02:40]} 20. b4 {[%clk 0:01:31]}  Qb5 {[%clk 0:02:38]} 21. Qc3 {[%clk 0:01:23]}  Rb8 {[%clk 0:02:37]} 22. Rab1 {[%clk 0:01:22]}  a6 {[%clk 0:02:32]} 23. Nf3 {[%clk 0:01:16]}  g5 {[%clk 0:02:23]} 24. Nd2 {[%clk 0:01:12]}  Nf8 {[%clk 0:02:16]} 25. Nc4 {[%clk 0:01:10]}  Ne6 {[%clk 0:02:15]} 26. Nb6 {[%clk 0:00:45]}  Rd8 {[%clk 0:02:11]} 27. Qb3 {[%clk 0:00:40]}  Nxb6 {[%clk 0:02:07]} 28. Bxb6 {[%clk 0:00:38]}  c5 {[%clk 0:02:01]} 29. Bxd8+ {[%clk 0:00:29]}  Rxd8 {[%clk 0:02:01]} 30. bxc5 {[%clk 0:00:28]}  Qxc5 {[%clk 0:02:02]} 31. Qb7+ {[%clk 0:00:27]}  Rd7 {[%clk 0:02:02]} 32. Qxa6 {[%clk 0:00:28]}  Nd4 {[%clk 0:01:59]} 33. Qb6 {[%clk 0:00:20]}  Qxc2 {[%clk 0:01:49]} 34. a6 {[%clk 0:00:20]}  Ne2+ {[%clk 0:00:57]} 35. Kh1 {[%clk 0:00:20]}  Nc3 {[%clk 0:00:56]} 36. Rbc1 {[%clk 0:00:11]}  Qa4 {[%clk 0:00:54]} 37. Ra1 {[%clk 0:00:03]}  Qxe4 {[%clk 0:00:41]} 38. Re1 {[%clk 0:00:01]}  Qa8 {[%clk 0:00:38]} 39. a7 {[%clk 0:00:01]}  Nd5 {[%clk 0:00:38]} 40. Qb8 {[%clk 0:00:01]}  Nc7 {[%clk 0:00:34]} 41. Qxa8 {[%clk 0:00:01]}  Nxa8 {[%clk 0:00:34]} 42. Reb1 {[%clk 0:00:02]}  Rxa7 {[%clk 0:00:22]} 43. Rxa7+ {[%clk 0:00:01]}  Ke6 {[%clk 0:00:22]} 44. Rxa8 {[%clk 0:00:01]}  f5 {[%clk 0:00:23]} 45. Rh8 {[%clk 0:00:02]}  f4 {[%clk 0:00:23]} 46. Rxh7 {[%clk 0:00:03]}  g4 {[%clk 0:00:24]} 47. Rh4 {[%clk 0:00:03]}  f3 {[%clk 0:00:25]} 48. Rxg4 {[%clk 0:00:04]}  fxg2+ {[%clk 0:00:22]} 49. Kxg2 {[%clk 0:00:04]} 1-0


[Site "https://www.chess.com"]

[Event "Titled Tuesday Blitz November 14 Early 2023"]
[White "Mishra, Manoj"]
[Black "lagunanivaria"]
[WhiteFideId "5006007"]
[WhiteElo "2202"]
[BlackElo "2462"]
[Result "0-1"]
[Round "4"]
[TimeControl "180+1"]
[Date "2023.11.14"]
[WhiteClock "0:00:00"]
[BlackClock "0:00:12"]
[Board "187"]

1. d4 {[%clk 0:03:00]}  d5 {[%clk 0:02:58]} 2. c4 {[%clk 0:02:58]}  e6 {[%clk 0:02:59]} 3. Nc3 {[%clk 0:02:58]}  Bb4 {[%clk 0:02:56]} 4. Nf3 {[%clk 0:02:56]}  Nf6 {[%clk 0:02:55]} 5. Bf4 {[%clk 0:02:53]}  O-O {[%clk 0:02:53]} 6. e3 {[%clk 0:02:49]}  Bxc3+ {[%clk 0:02:47]} 7. bxc3 {[%clk 0:02:47]}  c5 {[%clk 0:02:48]} 8. Bd3 {[%clk 0:02:38]}  b6 {[%clk 0:02:43]} 9. O-O {[%clk 0:02:33]}  Bb7 {[%clk 0:02:37]} 10. Bg5 {[%clk 0:02:18]}  Nbd7 {[%clk 0:02:32]} 11. Ne5 {[%clk 0:02:14]}  Rc8 {[%clk 0:02:10]} 12. Nxd7 {[%clk 0:01:57]}  Qxd7 {[%clk 0:02:11]} 13. Bxf6 {[%clk 0:01:54]}  gxf6 {[%clk 0:02:12]} 14. Bxh7+ {[%clk 0:01:35]}  Kxh7 {[%clk 0:01:47]} 15. Qh5+ {[%clk 0:01:25]}  Kg7 {[%clk 0:01:47]} 16. Qg4+ {[%clk 0:01:19]}  Kh6 {[%clk 0:01:48]} 17. Qh4+ {[%clk 0:01:15]}  Kg6 {[%clk 0:01:48]} 18. f4 {[%clk 0:00:42]}  Rg8 {[%clk 0:00:50]} 19. Rf3 {[%clk 0:00:17]}  Kg7 {[%clk 0:00:49]} 20. Rg3+ {[%clk 0:00:13]}  Kf8 {[%clk 0:00:49]} 21. Qxf6 {[%clk 0:00:10]}  Rxg3 {[%clk 0:00:48]} 22. hxg3 {[%clk 0:00:11]}  cxd4 {[%clk 0:00:43]} 23. cxd4 {[%clk 0:00:10]}  Qd8 {[%clk 0:00:36]} 24. Qh8+ {[%clk 0:00:09]}  Ke7 {[%clk 0:00:36]} 25. Qh4+ {[%clk 0:00:09]}  Kd7 {[%clk 0:00:36]} 26. Qh7 {[%clk 0:00:09]}  Qf6 {[%clk 0:00:31]} 27. c5 {[%clk 0:00:08]}  bxc5 {[%clk 0:00:31]} 28. Rb1 {[%clk 0:00:08]}  Bc6 {[%clk 0:00:13]} 29. dxc5 {[%clk 0:00:04]}  Qg6 {[%clk 0:00:13]} 30. Qh4 {[%clk 0:00:00]}  Qxb1+ {[%clk 0:00:12]} 0-1


[Site "https://www.chess.com"]

[Event "Titled Tuesday Blitz November 14 Early 2023"]
[White "UNSTOPPABLE_LEGEND"]
[Black "missponyo10"]
[WhiteElo "2456"]
[BlackElo "2151"]
[Result "1-0"]
[Round "4"]
[TimeControl "180+1"]
[Date "2023.11.14"]
[WhiteClock "0:00:04"]
[BlackClock "0:00:49"]
[Board "189"]

1. Nf3 {[%clk 0:03:00]}  d5 {[%clk 0:02:59]} 2. c4 {[%clk 0:03:00]}  c6 {[%clk 0:02:58]} 3. g3 {[%clk 0:03:00]}  Nf6 {[%clk 0:02:58]} 4. Bg2 {[%clk 0:03:00]}  e6 {[%clk 0:02:58]} 5. O-O {[%clk 0:03:00]}  dxc4 {[%clk 0:02:58]} 6. Qc2 {[%clk 0:02:53]}  b5 {[%clk 0:02:58]} 7. a4 {[%clk 0:02:53]}  Ba6 {[%clk 0:02:44]} 8. axb5 {[%clk 0:02:44]}  Bxb5 {[%clk 0:02:45]} 9. Nc3 {[%clk 0:02:42]}  Ba6 {[%clk 0:02:38]} 10. Ne5 {[%clk 0:02:41]}  Qc7 {[%clk 0:02:37]} 11. Nxc6 {[%clk 0:02:36]}  Bb7 {[%clk 0:02:26]} 12. Nxb8 {[%clk 0:01:37]}  Qxb8 {[%clk 0:02:24]} 13. Qa4+ {[%clk 0:01:33]}  Nd7 {[%clk 0:02:23]} 14. Qxc4 {[%clk 0:01:31]}  Bxg2 {[%clk 0:02:24]} 15. Kxg2 {[%clk 0:01:32]}  Be7 {[%clk 0:02:21]} 16. Qa4 {[%clk 0:01:24]}  Qb7+ {[%clk 0:02:19]} 17. Qe4 {[%clk 0:01:24]}  Qxe4+ {[%clk 0:02:13]} 18. Nxe4 {[%clk 0:01:25]}  O-O {[%clk 0:02:14]} 19. d3 {[%clk 0:01:22]}  Nf6 {[%clk 0:02:13]} 20. Nxf6+ {[%clk 0:01:18]}  Bxf6 {[%clk 0:02:14]} 21. Be3 {[%clk 0:00:57]}  a5 {[%clk 0:01:54]} 22. Ra2 {[%clk 0:00:55]}  Rfb8 {[%clk 0:01:50]} 23. Rb1 {[%clk 0:00:54]}  a4 {[%clk 0:01:48]} 24. d4 {[%clk 0:00:32]}  Rb4 {[%clk 0:01:41]} 25. Rd1 {[%clk 0:00:20]}  Rab8 {[%clk 0:01:39]} 26. Rd2 {[%clk 0:00:20]}  Bd8 {[%clk 0:01:34]} 27. Kf3 {[%clk 0:00:20]}  Ba5 {[%clk 0:01:31]} 28. Rc2 {[%clk 0:00:20]}  h6 {[%clk 0:01:26]} 29. Kg2 {[%clk 0:00:20]}  Bb6 {[%clk 0:01:24]} 30. Rd2 {[%clk 0:00:19]}  Rd8 {[%clk 0:01:24]} 31. Ra3 {[%clk 0:00:13]}  Ba7 {[%clk 0:01:17]} 32. Rad3 {[%clk 0:00:10]}  Rdb8 {[%clk 0:01:15]} 33. Ra3 {[%clk 0:00:08]}  Rd8 {[%clk 0:01:13]} 34. Kf3 {[%clk 0:00:07]}  Bxd4 {[%clk 0:00:53]} 35. Bxd4 {[%clk 0:00:06]}  e5 {[%clk 0:00:53]} 36. Bc3 {[%clk 0:00:04]}  e4+ {[%clk 0:00:49]} 37. Ke3 {[%clk 0:00:04]} 1-0


[Site "https://www.chess.com"]

[Event "Titled Tuesday Blitz November 14 Early 2023"]
[White "Suduvasachmatai"]
[Black "Estrada Nieto, Julian"]
[BlackFideId "5101018"]
[WhiteElo "2146"]
[BlackElo "2447"]
[Result "1-0"]
[Round "4"]
[TimeControl "180+1"]
[Date "2023.11.14"]
[WhiteClock "0:00:11"]
[BlackClock "0:00:00"]
[Board "190"]

1. e4 {[%clk 0:03:00]}  e5 {[%clk 0:02:57]} 2. Nf3 {[%clk 0:03:00]}  Nc6 {[%clk 0:02:58]} 3. c3 {[%clk 0:02:57]}  Nf6 {[%clk 0:02:57]} 4. d4 {[%clk 0:02:56]}  Nxe4 {[%clk 0:02:57]} 5. d5 {[%clk 0:02:54]}  Ne7 {[%clk 0:02:57]} 6. Nxe5 {[%clk 0:02:54]}  Ng6 {[%clk 0:02:56]} 7. Nxg6 {[%clk 0:02:45]}  hxg6 {[%clk 0:02:56]} 8. Bd3 {[%clk 0:02:45]}  Nf6 {[%clk 0:02:49]} 9. O-O {[%clk 0:02:44]}  Be7 {[%clk 0:02:45]} 10. Re1 {[%clk 0:02:42]}  O-O {[%clk 0:02:41]} 11. Bg5 {[%clk 0:02:41]}  d6 {[%clk 0:02:40]} 12. Nd2 {[%clk 0:02:40]}  Nxd5 {[%clk 0:02:37]} 13. Bxe7 {[%clk 0:02:36]}  Nxe7 {[%clk 0:02:38]} 14. Qf3 {[%clk 0:02:35]}  c6 {[%clk 0:02:22]} 15. Ne4 {[%clk 0:02:31]}  Nd5 {[%clk 0:02:12]} 16. Rad1 {[%clk 0:02:28]}  Qh4 {[%clk 0:02:00]} 17. h3 {[%clk 0:02:19]}  Rd8 {[%clk 0:01:51]} 18. Nxd6 {[%clk 0:01:11]}  Rxd6 {[%clk 0:01:43]} 19. Re8+ {[%clk 0:01:09]}  Kh7 {[%clk 0:01:42]} 20. Qxf7 {[%clk 0:01:10]}  Nf4 {[%clk 0:01:02]} 21. Qg8+ {[%clk 0:00:51]}  Kh6 {[%clk 0:01:01]} 22. Qh8+ {[%clk 0:00:44]}  Kg5 {[%clk 0:01:01]} 23. Qxh4+ {[%clk 0:00:39]}  Kxh4 {[%clk 0:01:01]} 24. g3+ {[%clk 0:00:39]}  Kxh3 {[%clk 0:00:33]} 25. Bf1+ {[%clk 0:00:31]}  Kg4 {[%clk 0:00:32]} 26. Rxd6 {[%clk 0:00:29]}  Nd5 {[%clk 0:00:23]} 27. Rxg6+ {[%clk 0:00:26]}  Kf5 {[%clk 0:00:20]} 28. Rxg7 {[%clk 0:00:24]}  b5 {[%clk 0:00:17]} 29. Rgg8 {[%clk 0:00:20]}  Nb6 {[%clk 0:00:15]} 30. Bh3+ {[%clk 0:00:20]}  Kf6 {[%clk 0:00:14]} 31. Bxc8 {[%clk 0:00:20]}  Nd5 {[%clk 0:00:13]} 32. Bb7 {[%clk 0:00:19]}  Rxe8 {[%clk 0:00:12]} 33. Rxe8 {[%clk 0:00:19]}  Ne7 {[%clk 0:00:11]} 34. Ra8 {[%clk 0:00:17]}  c5 {[%clk 0:00:10]} 35. Rxa7 {[%clk 0:00:16]}  c4 {[%clk 0:00:11]} 36. Ba6 {[%clk 0:00:16]}  Nc6 {[%clk 0:00:10]} 37. Rb7 {[%clk 0:00:16]}  b4 {[%clk 0:00:09]} 38. cxb4 {[%clk 0:00:13]}  Ne5 {[%clk 0:00:06]} 39. Rb6+ {[%clk 0:00:11]}  Kg5 {[%clk 0:00:06]} 40. Rb5 {[%clk 0:00:12]}  Kf6 {[%clk 0:00:05]} 41. Rxe5 {[%clk 0:00:12]}  Kxe5 {[%clk 0:00:05]} 42. Bxc4 {[%clk 0:00:13]}  Kd4 {[%clk 0:00:05]} 43. f4 {[%clk 0:00:11]}  Kxc4 {[%clk 0:00:05]} 44. f5 {[%clk 0:00:12]}  Kd5 {[%clk 0:00:06]} 45. b5 {[%clk 0:00:11]}  Ke5 {[%clk 0:00:05]} 46. b6 {[%clk 0:00:11]}  Kd6 {[%clk 0:00:05]} 47. f6 {[%clk 0:00:11]}  Ke6 {[%clk 0:00:05]} 48. b7 {[%clk 0:00:11]}  Kxf6 {[%clk 0:00:05]} 49. b8=Q {[%clk 0:00:11]}  Kg5 {[%clk 0:00:00]} 50. Qf4+ {[%clk 0:00:11]} 1-0


[Site "https://www.chess.com"]